[Event "XLIX Sevilla Open 2024"]
[Site "?"]
[Date "2024.01.15"]
[Round "4.11"]
[White "Zylka, Stanislaw"]
[Black "Youssoupov, Moissei"]
[Result "1/2-1/2"]
[ECO "B06"]
[WhiteElo "2411"]
[BlackElo "2108"]
[Annotator "TA"]
[PlyCount "95"]
[EventDate "2024.01.12"]
[EventType "swiss"]
[SourceTitle "playchess.com"]
[Source "ChessBase"]
[SourceQuality "1"]
[TimeControl "5400+30"]

{[%evp 11,95,48,64,72,74,63,64,41,38,0,0,0,0,-51,-33,-127,0,-66,-64,-109,-111,-102,-54,-146,0,0,0,0,0,0,42,39,24,19,26,0,0,0,0,0,0,0,0,0,0,0,0,0,0,0,-5,-7,0,0,0,0,0,0,0,0,0,-16,-3,-40,-45,-74,-84,-119,-113,-170,-156,-424,-431,-534,-528,-482,-411,-360,-334,-556,-547,-548,-412,-370,-377,-312]} 1. d4 {[%emt 0:00:04]} g6 {[%emt 0:01:03]} 2. e4 {[%emt 0:00:22]} d6 {[%emt 0:00:18]} 3. Nc3 {[%emt 0:00:11]} Bg7 {[%emt 0:00:04]} 4. Bg5 {[%emt 0:00:13]} c5 {[%emt 0:01:21]} 5. dxc5 {[%emt 0:00:24]} Qa5 {[%emt 0:00:29]} 6. Qd2 {[%emt 0:00:18]} Qxc5 {[%emt 0:02:43]} 7. Nd5 {[%emt 0:01:03] [#] Be3 would be deadly. B06: Modern Defence.} Be6 {[%emt 0:09:40]} 8. Be3 {[%emt 0:02:59]} Qc8 {[%emt 0:00:49]} 9. Bd4 {[%emt 0:01:31] White is more active. White is slightly better.} Nf6 {[%emt 0:13:20]} 10. Nxf6+ {[%emt 0:01:14]} exf6 {[%emt 0:00:03]} 11. O-O-O {[%emt 0:01:06]} O-O {[%emt 0:00:48] [#]} 12. Bc3 $146 {[%emt 0:07:08]} (12. Ne2 $11) ({Predecessor:} 12. Kb1 d5 13. exd5 Bxd5 14. Ne2 Nc6 15. Bc3 Rd8 16. Qc1 Qc7 17. Nd4 Ne5 18. f3 {0-1 Nestorovic,L (2310)-Dolnik,A (2183) Senta op-A 14th 2010 (3)}) 12... Nc6 {[%emt 0:05:32]} 13. f4 {[%emt 0:00:31]} ({White should try} 13. Ne2 $15) 13... a5 {[%emt 0:04:28]} ({Black should play} 13... Rd8 $17 {White must now prevent ...d5.} 14. f5 gxf5 15. exf5 Bxf5) 14. a3 {[%emt 0:00:20]} ({Better is} 14. Kb1 $1 $11) 14... Rd8 $1 $15 {[%emt 0:02:30]} 15. Bb5 {[%emt 0:13:43]} d5 {[%emt 0:05:02]} 16. Bxc6 {[%emt 0:03:34]} bxc6 {[%emt 0:05:59]} (16... Qxc6 $17 17. f5 gxf5 18. exf5 Bxf5) 17. f5 {[%emt 0:01:13]} (17. exd5 $1 $15 Rxd5 18. Qe3) 17... gxf5 {[%emt 0:08:06]} (17... dxe4 $17 18. Qxd8+ Qxd8 19. Rxd8+ Rxd8 20. fxe6 Bh6+ 21. Kb1 Rd1+ 22. Ka2 fxe6 23. Bxa5 (23. Bxf6 $2 {is the wrong capture.} e3 $19) 23... Be3) 18. exd5 $11 {[%emt 0:02:34]} Rxd5 {[%emt 0:04:15]} 19. Qe2 {[%emt 0:10:12]} Rxd1+ {[%emt 0:07:46]} 20. Qxd1 {[%emt 0:00:14]} Qc7 {[%emt 0:01:21] aiming for ...Qf4+.} 21. Ne2 {[%emt 0:02:00] Inhibits Qf4+.} a4 {[%emt 0:05:28]} 22. Qd3 {[%emt 0:04:53]} Rd8 {[%emt 0:03:14]} 23. Qg3 {[%emt 0:00:31]} Qxg3 {[%emt 0:03:20]} 24. hxg3 {[%emt 0:00:19]} Bd5 {[%emt 0:01:24]} 25. Nf4 {[%emt 0:02:33]} Be4 {[%emt 0:00:17]} 26. Rh4 {[%emt 0:03:06]} Rd6 {[%emt 0:02:41]} 27. b3 {[%emt 0:01:02]} axb3 {[%emt 0:01:23]} 28. cxb3 {[%emt 0:00:08]} c5 {[%emt 0:00:20]} 29. Rh1 {[%emt 0:00:21]} Bf8 {[%emt 0:06:22]} 30. Kb2 {[%emt 0:00:15]} Be7 {[%emt 0:00:55]} 31. Re1 {[%emt 0:01:19]} Bd8 {[%emt 0:00:57]} 32. a4 {[%emt 0:00:28]} Be7 {[%emt 0:02:06]} 33. g4 {[%emt 0:01:44] And now gxf5 would win.} Kf8 $1 {[%emt 0:00:26]} 34. a5 {[%emt 0:00:54]} Ra6 {[%emt 0:01:26]} 35. gxf5 {[%emt 0:01:34]} Bxf5 {[%emt 0:00:00]} 36. Nd5 {[%emt 0:00:38]} Bd8 {[%emt 0:00:01]} 37. Ra1 {[%emt 0:03:17]} (37. Rf1 $5 {[%cal Rf1f5]} Bd3 38. Re1 $15) 37... Be4 {[%emt 0:00:21][%csl LRd5,LRg2]} 38. Ne3 {[%emt 0:00:12] [#]} f5 $1 {[%emt 0:00:16]} 39. Nc4 {[%emt 0:02:09]} Bxg2 {[%emt 0:01:31] Hoping for ...f4. This pair of bishops is nice.} 40. Ne5 {[%emt 0:03:42]} (40. Rd1 $17 Be7 41. Ne3) 40... Ke7 {[%emt 0:01:44]} 41. Rd1 $2 {[%emt 0:00:34] This move loses the game for White.} (41. Re1 $17 Be4 42. Nc4) 41... Bxa5 $19 {[%emt 0:00:34]} 42. Nd3 {[%emt 0:01:15]} Bxc3+ {[%emt 0:00:28]} 43. Kxc3 {[%emt 0:00:04] KRB-KRN} Rd6 {[%emt 0:00:37] Strongly threatening ...Be4.} 44. Rg1 {[%emt 0:02:25]} Bc6 {[%emt 0:00:26]} 45. Rg7 $2 {[%emt 0:00:15]} (45. Rg5) 45... h5 {[%emt 0:00:18]} 46. Rh7 {[%emt 0:00:05]} Be4 {[%emt 0:00:45]} 47. Nxc5 {[%emt 0:00:15]} Bf3 {[%emt 0:00:14] ...Kf8 is the strong threat.} 48. Nd3 {[%emt 0:01:24][%mdl 32768] Weighted Error Value: White=0.32/Black=0.14 (very precise) . An unexpected result.} 1/2-1/2

[Event "XLIX Sevilla Open 2024"]
[Site "?"]
[Date "2024.01.15"]
[Round "4.12"]
[White "Fiorito, Joaquin"]
[Black "Lopez Gonzalez, Alfonso"]
[Result "1-0"]
[ECO "D35"]
[WhiteElo "2401"]
[BlackElo "2244"]
[Annotator "ChessBase"]
[PlyCount "53"]
[EventDate "2024.01.12"]
[EventType "swiss"]
[SourceTitle "playchess.com"]
[Source "ChessBase"]
[SourceQuality "1"]
[TimeControl "5400+30"]

1. d4 {[%emt 0:00:02]} Nf6 {[%emt 0:00:39]} 2. c4 {[%emt 0:00:04]} e6 {[%emt 0:00:04]} 3. Nc3 {[%emt 0:00:05]} d5 {[%emt 0:00:25]} 4. cxd5 {[%emt 0:00:06]} Nxd5 {[%emt 0:00:19]} 5. e4 {[%emt 0:00:43]} Nxc3 {[%emt 0:00:12]} 6. bxc3 {[%emt 0:00:05]} c5 {[%emt 0:00:03]} 7. Rb1 {[%emt 0:01:01]} cxd4 {[%emt 0:08:38]} 8. cxd4 {[%emt 0:00:08]} Nc6 {[%emt 0:00:36]} 9. Bb5 {[%emt 0:01:16]} Bd7 {[%emt 0:01:56]} 10. Nf3 {[%emt 0:02:52]} Bb4+ {[%emt 0:03:49]} 11. Bd2 {[%emt 0:00:32]} Bxd2+ {[%emt 0:00:29]} 12. Qxd2 {[%emt 0:00:19]} Qa5 {[%emt 0:03:21]} 13. d5 {[%emt 0:01:47]} Qxd2+ {[%emt 0:00:48]} 14. Kxd2 {[%emt 0:00:22]} Na5 {[%emt 0:21:12]} 15. Bxd7+ {[%emt 0:00:46]} Kxd7 {[%emt 0:00:05]} 16. Ne5+ {[%emt 0:00:04]} Ke7 {[%emt 0:00:38]} 17. d6+ {[%emt 0:00:27]} Ke8 {[%emt 0:02:10]} 18. Rhc1 {[%emt 0:00:56]} Rd8 {[%emt 0:02:58]} 19. Ke3 {[%emt 0:02:00]} f6 {[%emt 0:00:58]} 20. Nc4 {[%emt 0:03:25]} Nxc4+ {[%emt 0:03:27]} 21. Rxc4 {[%emt 0:00:01]} b6 {[%emt 0:01:43]} 22. Rc7 {[%emt 0:02:55]} Rd7 {[%emt 0:10:01]} 23. Rbc1 {[%emt 0:00:54]} Rf8 {[%emt 0:00:15]} 24. f4 {[%emt 0:04:17]} e5 {[%emt 0:00:43]} 25. fxe5 {[%emt 0:00:30]} fxe5 {[%emt 0:00:06]} 26. Rc8+ {[%emt 0:00:10]} Rd8 {[%emt 0:00:54]} 27. R1c7 {[%emt 0:00:33]} 1-0

[Event "XLIX Sevilla Open 2024"]
[Site "?"]
[Date "2024.01.15"]
[Round "4.13"]
[White "Quintin Navarro, Alberto"]
[Black "Jaksland, Tim"]
[Result "1-0"]
[ECO "E04"]
[WhiteElo "2371"]
[BlackElo "2062"]
[Annotator "TA"]
[PlyCount "159"]
[EventDate "2024.01.12"]
[EventType "swiss"]
[SourceTitle "playchess.com"]
[Source "ChessBase"]
[SourceQuality "1"]
[TimeControl "5400+30"]

{[%evp 11,159,21,29,8,22,31,17,20,22,7,27,10,28,13,27,5,25,27,18,12,30,0,30,8,60,65,60,50,63,39,65,55,94,91,97,92,112,82,89,68,93,88,85,93,93,83,102,102,97,97,97,97,98,101,104,93,93,93,140,140,131,91,127,97,94,91,124,79,79,68,70,68,68,59,68,68,116,116,122,118,114,114,133,133,120,120,162,155,155,155,155,155,155,155,155,149,162,162,163,122,137,139,163,163,163,163,163,163,163,163,200,163,170,163,163,163,163,160,257,257,524,616,616,616,609,609,609,609,595,562,547,339,388,0,322,215,508,377,1297,1480,1481,1110,2350,2252,29974,29974,29978,29978,29989,29990]} 1. d4 {[%emt 0:00:03]} Nf6 {[%emt 0:00:06]} 2. Nf3 {[%emt 0:00:04]} e6 {[%emt 0:00:26]} 3. c4 {[%emt 0:00:07]} d5 {[%emt 0:00:16][%cal Bd7d5,Bd5c4][%mdl 32]} 4. g3 {[%emt 0:00:06]} dxc4 {[%emt 0:00:41]} 5. Bg2 {[%emt 0:00:09]} a6 {[%emt 0:00:22]} 6. O-O {[%emt 0:00:11]} Nc6 {[%emt 0:00:25]} 7. Be3 {[%emt 0:00:26] E04: Open Catalan: 5 Nf3.} Be7 {[%emt 0:14:00]} 8. Qc1 {[%emt 0:03:48]} Nd5 {[%emt 0:02:10]} 9. Qxc4 {[%emt 0:00:56] The position is equal.} Nxe3 {[%emt 0:00:56]} 10. fxe3 {[%emt 0:00:07]} O-O {[%emt 0:02:18]} 11. Nbd2 {[%emt 0:04:24] [#]} Qd5 $146 {[%emt 0:18:26]} ({Predecessor:} 11... Nb4 12. e4 b5 13. Qc3 Bb7 14. a3 Nc6 15. e3 Rc8 16. b4 Nb8 17. Ne5 Nd7 18. Nxd7 Qxd7 {½-½ Vidit,S (2726)-Gavrilescu,D (2470) Titled Tuesday intern op 08th June blitz 2021 (8)}) 12. Qc2 {[%emt 0:04:10]} Qh5 {[%emt 0:00:39]} 13. Nc4 {[%emt 0:03:36]} Bd6 {[%emt 0:03:02]} 14. Rad1 {[%emt 0:02:10]} Bd7 {[%emt 0:21:02]} 15. a3 {[%emt 0:06:46]} Rad8 {[%emt 0:01:26]} 16. Qe4 {[%emt 0:09:56]} Bc8 {[%emt 0:03:36]} 17. b4 {[%emt 0:03:30]} Qg6 {[%emt 0:04:47]} ({Black should try} 17... f5 $11 18. Qc2 Ne7) 18. Qxg6 $14 {[%emt 0:01:07]} hxg6 {[%emt 0:00:05]} 19. Ng5 {[%emt 0:00:51][%cal Bf3g5,Bg5e4,Be4c5,Bc5d3,Bd3f4][%mdl 32]} Be7 {[%emt 0:05:26]} 20. Ne4 {[%emt 0:01:13]} (20. h4 $5 {[%cal Rg2c6]}) 20... Na7 {[%emt 0:04:11]} 21. Rc1 {[%emt 0:02:26]} Nb5 {[%emt 0:06:09]} 22. Nc5 {[%emt 0:01:38]} b6 {[%emt 0:04:51]} 23. Nd3 {[%emt 0:00:47]} Bg5 {[%emt 0:01:51][%cal Ob5a3]} 24. Nf4 {[%emt 0:02:08]} Bf6 {[%emt 0:01:24]} 25. Rc2 {[%emt 0:06:29]} Bd7 {[%emt 0:02:25]} 26. Nd3 {[%emt 0:00:53]} Nd6 {[%emt 0:01:02]} 27. Nce5 $1 {[%emt 0:01:10]} Bb5 {[%emt 0:00:59]} 28. Rxc7 {[%emt 0:01:55]} Rc8 {[%emt 0:00:12]} 29. Rfc1 {[%emt 0:00:47] White has more active pieces.} Rxc7 {[%emt 0:00:03]} 30. Rxc7 {[%emt 0:00:06]} Rc8 {[%emt 0:00:05]} 31. Rxc8+ {[%emt 0:01:27]} Nxc8 {[%emt 0:00:01]} 32. Bc6 {[%emt 0:02:54]} Nd6 {[%emt 0:01:18]} 33. a4 {[%emt 0:00:10]} Bxd3 {[%emt 0:00:31]} 34. exd3 $16 {[%emt 0:01:41][%mdl 4096] Endgame KBN-KBN} a5 {[%emt 0:01:28]} (34... Nf5 $142) 35. bxa5 {[%emt 0:00:57]} bxa5 {[%emt 0:00:00]} 36. Nf3 {[%emt 0:01:41]} Kf8 {[%emt 0:00:25]} 37. Kf2 {[%emt 0:00:26]} Nc8 {[%emt 0:00:45]} 38. Nd2 {[%emt 0:01:50]} Be7 {[%emt 0:00:19]} 39. e4 {[%emt 0:01:03]} Nb6 {[%emt 0:00:22]} 40. Nb3 {[%emt 0:09:34]} Bb4 {[%emt 0:00:05]} 41. Ke3 {[%emt 0:00:21]} Ke7 {[%emt 0:00:03]} 42. e5 {[%emt 0:02:18]} f6 {[%emt 0:00:49]} 43. Ke4 {[%emt 0:00:46]} Nc8 {[%emt 0:00:51]} (43... g5 $14 {might be stronger.}) 44. d5 {[%emt 0:01:39]} exd5+ {[%emt 0:00:39]} 45. Bxd5 {[%emt 0:01:17]} Nb6 {[%emt 0:00:40]} 46. Bc6 {[%emt 0:00:28]} Bc3 {[%emt 0:00:46]} 47. d4 {[%emt 0:03:11]} Bb4 {[%emt 0:00:17]} 48. Bb5 {[%emt 0:01:33]} Nc8 {[%emt 0:00:31]} 49. g4 {[%emt 0:01:52]} Nb6 {[%emt 0:00:32]} 50. h4 {[%emt 0:00:27]} Be1 {[%emt 0:00:30]} 51. h5 {[%emt 0:00:20]} gxh5 {[%emt 0:01:07]} 52. gxh5 {[%emt 0:00:07]} Bc3 {[%emt 0:00:37]} 53. Nc5 {[%emt 0:01:07]} Bb4 {[%emt 0:00:28]} 54. Nd3 {[%emt 0:00:34]} Bd2 {[%emt 0:00:11]} 55. Nf2 {[%emt 0:01:47]} fxe5 {[%emt 0:00:25]} 56. dxe5 {[%emt 0:00:11]} Ke6 {[%emt 0:00:36]} 57. Nd3 {[%emt 0:00:10]} Kf7 {[%emt 0:00:29]} 58. Kf5 {[%emt 0:01:13]} Nc8 {[%emt 0:00:15]} 59. Bc4+ {[%emt 0:01:04]} Ke7 {[%emt 0:00:36]} 60. Bb3 {[%emt 0:02:31]} Be3 {[%emt 0:00:27]} 61. Ke4 {[%emt 0:00:37]} Bd2 {[%emt 0:00:12]} 62. Nc5 {[%emt 0:02:19]} Nb6 {[%emt 0:00:53]} 63. Kf5 $1 {[%emt 0:00:21]} Bc3 {[%emt 0:00:20]} 64. Nd3 {[%emt 0:00:48]} Nd7 {[%emt 0:00:13] [#]} (64... Ke8 $16 {keeps fighting.} 65. Ke6 Bd2) 65. Bc4 $1 $18 {[%emt 0:01:34]} Bd4 $2 {[%emt 0:00:45] [#]} (65... Kf8 66. Bb5 Nb6) 66. Bb5 $1 {[%emt 0:00:18] Black must now prevent Bxd7.} Nf8 {[%emt 0:00:37]} 67. Nf4 {[%emt 0:00:22] Inhibits Ne6.} Bb2 {[%emt 0:00:46]} 68. Bc4 {[%emt 0:02:58]} Bc1 {[%emt 0:00:35]} 69. Nd5+ {[%emt 0:00:23]} Kd8 {[%emt 0:00:29]} 70. Bb5 {[%emt 0:00:45]} Ba3 {[%emt 0:00:29]} 71. Ne3 {[%emt 0:01:38]} Ke7 {[%emt 0:00:20]} 72. Nd5+ {[%emt 0:01:11]} Kd8 $1 {[%emt 0:00:01]} 73. Nb6 {[%emt 0:00:45]} Ke7 $2 {[%emt 0:00:42]} (73... Bb4 74. Be2 Be1) 74. Nc8+ {[%emt 0:00:21]} Kd8 $2 {[%emt 0:00:11]} (74... Kf7 75. e6+ Nxe6) 75. Na7 {[%emt 0:00:14]} Kc7 {[%emt 0:01:16]} 76. Nc6 {[%emt 0:00:13][%cal Oe5e6] And now e6! would win.} Kb6 {[%emt 0:00:35]} 77. e6 {[%emt 0:00:21][%cal Be5e6,Be6e7][%mdl 32] White wants to mate with e7.} Nh7 {[%emt 0:00:34]} 78. e7 {[%emt 0:00:54] White mates.} Nf6 {[%emt 0:00:17] [#]} 79. h6 $1 {[%emt 0:00:21][%cal Bh5h6,Bh6h7][%mdl 544]} Ne8 {[%emt 0:00:47]} (79... Bxe7 80. hxg7) 80. h7 {[%emt 0:00:20] Weighted Error Value: White=0.10 (very precise) /Black=0.13 (very precise)} 1-0

[Event "XLIX Sevilla Open 2024"]
[Site "?"]
[Date "2024.01.15"]
[Round "4.14"]
[White "Luch, Michal"]
[Black "Ortega Valle, Jose Ramon"]
[Result "1-0"]
[ECO "B06"]
[WhiteElo "2339"]
[BlackElo "2029"]
[Annotator "TA"]
[PlyCount "75"]
[EventDate "2024.01.12"]
[EventType "swiss"]
[SourceTitle "playchess.com"]
[Source "ChessBase"]
[SourceQuality "1"]
[TimeControl "5400+30"]

{[%evp 9,75,58,92,67,95,70,86,94,156,152,156,120,108,112,98,114,127,120,128,29,47,57,242,36,52,21,0,6,193,38,54,0,8,4,22,-8,-3,-3,-3,-7,-3,-4,-6,-9,22,38,65,0,0,0,0,-30,0,0,0,0,183,205,460,454,1033,464,925,654,888,868,899,499]} 1. d4 {[%emt 0:00:02]} g6 {[%emt 0:00:06]} 2. e4 {[%emt 0:00:19][%cal Be2e4,Be4e5][%mdl 32]} Nf6 {[%emt 0:00:07]} 3. e5 {[%emt 0:00:14]} Nh5 {[%emt 0:00:05]} 4. Nf3 {[%emt 0:00:25]} d6 {[%emt 0:00:12]} 5. Bc4 {[%emt 0:06:37]} c6 {[%emt 0:00:47] [#]} 6. h3 $146 {[%emt 0:03:28] B06: Modern Defence.} ({Predecessor:} 6. Ng5 d5 7. Be2 Ng7 8. O-O h6 9. Nf3 Bg4 10. Nbd2 e6 11. h3 h5 12. Nb3 Bxf3 13. Bxf3 {1-0 Grischuk,A (2750)-Rapport,R (2698) chess.com blitz 1m+1spm 2017 (1.22)}) 6... b5 {[%emt 0:07:00]} 7. Bb3 {[%emt 0:00:10]} a5 {[%emt 0:07:42]} 8. a4 {[%emt 0:01:27] White is better.} bxa4 {[%emt 0:00:09]} ({Black should try} 8... b4) 9. Rxa4 {[%emt 0:02:44]} Ba6 {[%emt 0:02:27]} 10. c4 {[%emt 0:00:46]} dxe5 {[%emt 0:04:33]} 11. Nxe5 {[%emt 0:07:37]} Bg7 {[%emt 0:06:17]} 12. O-O {[%emt 0:02:29] White has more active pieces.} O-O {[%emt 0:04:20][%cal Oc6c5]} 13. Re1 $1 {[%emt 0:01:34]} e6 {[%emt 0:04:25]} 14. Qd2 {[%emt 0:06:51]} (14. Nc3 $16) 14... c5 $11 {[%emt 0:07:23]} 15. d5 {[%emt 0:24:02]} (15. Rxa5 cxd4 16. Bd1 Bxe5 17. Raxe5 (17. Rexe5 Nc6 $11) 17... f6 $11) 15... Qd6 $2 {[%emt 0:10:28]} (15... exd5 $14 16. cxd5 (16. Rxa5 $2 Bxe5 {[%mdl 64] Remove Defender} 17. Rxe5 Nc6 $17) (16. Qxd5 Qxd5 17. cxd5 Bb5 $14) 16... Qd6) 16. Nf3 $2 {[%emt 0:16:08]} (16. Nxf7 $1 $18 Kxf7 17. dxe6+ (17. Rxe6 Qd7 $14) 17... Ke7 18. Qg5+ (18. Rxa5 Bd4 $11) (18. Qxa5 $2 Rxf2 19. Bg5+ Bf6 $17) 18... Ke8 19. Qd5 (19. Rxa5 Rf5 $11) 19... Qxd5 20. cxd5) 16... exd5 {[%emt 0:01:02]} 17. cxd5 {[%emt 0:00:38]} (17. Qxd5 {simplifies} Qxd5 18. cxd5 c4 19. Bxc4 Nd7 20. Bxa6 Rxa6 21. Rc4) 17... Nd7 {[%emt 0:05:49][%cal Oc5c4]} 18. Rxa5 {[%emt 0:00:15]} Rae8 $2 {[%emt 0:01:33] [#]} (18... Nhf6 $11) 19. Rxe8 $2 {[%emt 0:11:31]} (19. Re6 $1 $18 {[%cal Re6d6]} Qb8 20. Rxe8 (20. Rexa6 Qxb3 21. Nc3 Bxc3 $18) 20... Rxe8 21. Ba4) 19... Rxe8 $14 {[%emt 0:00:07]} 20. Ba4 {[%emt 0:00:10]} (20. Nc3 $14) 20... Re2 $11 {[%emt 0:05:27]} 21. Qd1 {[%emt 0:00:26]} Ne5 {[%emt 0:13:29] ( -> ...Nxf3+)} 22. Nbd2 {[%emt 0:02:59][%cal Oa4c6] Strongly threatening Bc6!} (22. Ng5 $5 Qb6 23. Bb5 (23. Bd2 $2 Rxf2 24. Rxa6 Qxa6 $19) 23... Qxa5 24. Bxe2 $11) 22... Qb6 {[%emt 0:09:29] Against Bc6} (22... Nf4 {looks sharper.} 23. Nxe5 Bxe5 24. Nf3 Qb6) 23. Qxe2 {[%emt 0:00:06][%mdl 64] Double Attack} Qxa5 {[%emt 0:01:15]} 24. Qd1 {[%emt 0:00:03]} Nf4 {[%emt 0:00:34]} (24... Nd3 {seems wilder.} 25. Bc2 Nhf4 26. Nb3 Qb6) 25. Nxe5 {[%emt 0:02:52]} Bxe5 {[%emt 0:00:41]} 26. Nf3 $132 {[%emt 0:03:46][%mdl 2048] White is not holding back} Ne2+ {[%emt 0:04:36]} 27. Kh1 {[%emt 0:00:03]} Bd6 {[%emt 0:03:57]} 28. Be3 {[%emt 0:02:47]} ({White should play} 28. Bd2 $14 Qb6 29. Qb1) 28... Qb4 {[%emt 0:00:00]} 29. Qb3 {[%emt 0:02:56]} Qe4 {[%emt 0:00:00][%cal Oa6b5]} 30. Qc2 {[%emt 0:01:02]} (30. Nd2 $5 {[%cal Rd2e4]} Qe5 31. Nf3 $11) 30... Qxd5 {[%emt 0:00:00]} (30... Bd3 {simplifies} 31. Qd1 Nf4 32. Bxf4 Bxf4 33. Bc6 Be2) 31. Bb3 {[%emt 0:00:01]} (31. Qd2 {simplifies} Qxd2 32. Nxd2 Be5 33. Ne4) 31... Qc6 {[%emt 0:01:07]} 32. Ng5 {[%emt 0:00:44]} c4 $2 {[%emt 0:00:17] [#]} (32... Bb7 $1 $11 {and Black stays safe.} 33. Bxf7+ (33. f3 Qa6 $11) 33... Kg7) 33. Ba4 $1 $18 {[%emt 0:00:09]} Qd5 {[%emt 0:00:37]} (33... Qb7) 34. Qxe2 {[%emt 0:00:12] Black must now prevent Be8. White is clearly winning.} Qa5 {[%emt 0:00:41]} (34... Bb7 $142 35. Nf3 Qe6) 35. Qd2 {[%emt 0:01:15]} (35. Bc5 $142 Qxa4 36. Bxd6) 35... Qe5 {[%emt 0:00:32]} (35... Qxd2 $142 36. Bxd2 Be7) 36. Nf3 {[%emt 0:00:09]} Qe6 {[%emt 0:00:22]} 37. Bc6 {[%emt 0:00:27] Wards off Bb7} Bc7 {[%emt 0:00:28]} 38. Qd7 {[%emt 0:00:31] A cool game by Luch.   Weighted Error Value: White=0.57/Black=0.50} 1-0